[Event "*** Titled Tuesday Blitz"]
[Site "Chess.com"]
[Date "2021.04.06"]
[Round "6"]
[White "enriquetejedor"]
[Black "Handszar"]
[Result "1-0"]
[WhiteElo "2591"]
[BlackElo "2355"]
[TimeControl "180+1"]
[EndTime "11:09:19 PDT"]
[Termination "enriquetejedor won on time"]

1. e4 {[%clk 0:02:10.6]} 1... c5 {[%clk 0:02:58.6]} 2. Nc3 {[%clk 0:02:09.8]}
2... d6 {[%clk 0:02:56.7]} 3. g3 {[%clk 0:02:10.7]} 3... Qd7 {[%clk 0:02:44.6]}
4. Bg2 {[%clk 0:02:11.2]} 4... b5 {[%clk 0:02:44.3]} 5. e5 {[%clk 0:01:53.8]}
5... Bb7 {[%clk 0:02:39.2]} 6. Bxb7 {[%clk 0:01:54.3]} 6... Qxb7 {[%clk
0:02:39.4]} 7. Qf3 {[%clk 0:01:55.2]} 7... Qxf3 {[%clk 0:02:09.9]} 8. Nxf3
{[%clk 0:01:56.1]} 8... b4 {[%clk 0:01:57.2]} 9. Nd5 {[%clk 0:01:45.8]} 9... Kd7
{[%clk 0:01:30.6]} 10. O-O {[%clk 0:01:32.7]} 10... e6 {[%clk 0:01:25.8]} 11.
Ne3 {[%clk 0:01:22.9]} 11... d5 {[%clk 0:01:24.6]} 12. a3 {[%clk 0:01:21.2]}
12... bxa3 {[%clk 0:00:53.1]} 13. Rxa3 {[%clk 0:01:18.3]} 13... Ne7 {[%clk
0:00:51.6]} 14. b3 {[%clk 0:01:09.6]} 14... Nec6 {[%clk 0:00:47.1]} 15. Bb2
{[%clk 0:01:00.1]} 15... c4 {[%clk 0:00:44.3]} 16. bxc4 {[%clk 0:00:36.5]} 16...
Bxa3 {[%clk 0:00:42.6]} 17. Bxa3 {[%clk 0:00:37.4]} 17... d4 {[%clk 0:00:40.2]}
18. Ng2 {[%clk 0:00:29]} 18... f6 {[%clk 0:00:39.7]} 19. Re1 {[%clk 0:00:24]}
19... fxe5 {[%clk 0:00:38.9]} 20. Nxe5+ {[%clk 0:00:24.9]} 20... Nxe5 {[%clk
0:00:39.1]} 21. Rxe5 {[%clk 0:00:25.8]} 21... Nc6 {[%clk 0:00:39.6]} 22. Rg5
{[%clk 0:00:26.4]} 22... g6 {[%clk 0:00:39]} 23. h4 {[%clk 0:00:26]} 23... Rab8
{[%clk 0:00:36.7]} 24. Nf4 {[%clk 0:00:23.5]} 24... Rb1+ {[%clk 0:00:34.7]} 25.
Kg2 {[%clk 0:00:21.8]} 25... Ra1 {[%clk 0:00:33.9]} 26. Bc5 {[%clk 0:00:20.6]}
26... Ra2 {[%clk 0:00:33.1]} 27. h5 {[%clk 0:00:07.4]} 27... Rg8 {[%clk
0:00:30.7]} 28. hxg6 {[%clk 0:00:07.3]} 28... hxg6 {[%clk 0:00:30.8]} 29. c3
{[%clk 0:00:03.3]} 29... dxc3 {[%clk 0:00:23.1]} 30. dxc3 {[%clk 0:00:04.2]}
30... Rc2 {[%clk 0:00:22.6]} 31. Be3 {[%clk 0:00:02.6]} 31... Rxc3 {[%clk
0:00:20.8]} 32. Rc5 {[%clk 0:00:03.2]} 32... g5 {[%clk 0:00:16.8]} 33. Ne2
{[%clk 0:00:02.1]} 33... Rc8 {[%clk 0:00:12.3]} 34. Nc1 {[%clk 0:00:01.9]} 34...
g4 {[%clk 0:00:11.1]} 35. Ne2 {[%clk 0:00:01.8]} 35... Rc2 {[%clk 0:00:10.6]}
36. Nf4 {[%clk 0:00:02.1]} 36... Nb4 {[%clk 0:00:08.8]} 37. Rg5 {[%clk
0:00:01.8]} 37... R8xc4 {[%clk 0:00:07.4]} 38. Rg7+ {[%clk 0:00:01.8]} 38... Kd6
{[%clk 0:00:07]} 39. Rxa7 {[%clk 0:00:02.1]} 39... Nd5 {[%clk 0:00:07]} 40. Nxd5
{[%clk 0:00:01.9]} 40... exd5 {[%clk 0:00:07]} 41. Ra6+ {[%clk 0:00:02.1]} 41...
Ke5 {[%clk 0:00:06.4]} 42. Ra8 {[%clk 0:00:02]} 42... Ke6 {[%clk 0:00:05.3]} 43.
Re8+ {[%clk 0:00:01.5]} 43... Kd7 {[%clk 0:00:04.7]} 44. Rg8 {[%clk 0:00:01.6]}
44... d4 {[%clk 0:00:04.3]} 45. Bf4 {[%clk 0:00:01.8]} 45... d3 {[%clk
0:00:04.3]} 46. Rxg4 {[%clk 0:00:02.1]} 46... d2 {[%clk 0:00:04.2]} 47. Rg7+
{[%clk 0:00:03]} 47... Ke6 {[%clk 0:00:03.5]} 48. Bxd2 {[%clk 0:00:02.6]} 48...
Rxd2 {[%clk 0:00:03.2]} 49. Rg6+ {[%clk 0:00:03.1]} 49... Kf7 {[%clk 0:00:02.9]}
50. Rg5 {[%clk 0:00:03.3]} 50... Kf6 {[%clk 0:00:02]} 51. Rg8 {[%clk 0:00:03.4]}
51... Rc7 {[%clk 0:00:01.3]} 52. Rf8+ {[%clk 0:00:03.6]} 52... Rf7 {[%clk
0:00:01.7]} 53. Ra8 {[%clk 0:00:04.5]} 53... Kg7 {[%clk 0:00:01.4]} 54. Kh3
{[%clk 0:00:03.8]} 54... Rfxf2 {[%clk 0:00:01.9]} 55. Ra4 {[%clk 0:00:04.7]}
55... Rh2+ {[%clk 0:00:02.1]} 56. Kg4 {[%clk 0:00:05.3]} 56... Rb2 {[%clk
0:00:02.4]} 57. Ra7+ {[%clk 0:00:05.7]} 57... Kf6 {[%clk 0:00:01.1]} 58. Ra5
{[%clk 0:00:06.6]} 1-0

[Event "*** Titled Tuesday Blitz"]
[Site "Chess.com"]
[Date "2021.04.06"]
[Round "6"]
[White "BlueWizzard"]
[Black "iamnotIM"]
[Result "0-1"]
[WhiteElo "2742"]
[BlackElo "2565"]
[TimeControl "180+1"]
[EndTime "11:09:20 PDT"]
[Termination "iamnotIM won by resignation"]

1. d4 {[%clk 0:03:00.9]} 1... Nf6 {[%clk 0:02:59.4]} 2. Nc3 {[%clk 0:03:01.5]}
2... d5 {[%clk 0:02:56.4]} 3. Bg5 {[%clk 0:03:02]} 3... c6 {[%clk 0:02:51]} 4.
e3 {[%clk 0:03:01.2]} 4... Qb6 {[%clk 0:02:42.1]} 5. Rb1 {[%clk 0:02:57.5]} 5...
Bf5 {[%clk 0:02:39]} 6. Nf3 {[%clk 0:02:53.2]} 6... Nbd7 {[%clk 0:02:37.6]} 7.
Bd3 {[%clk 0:02:51.2]} 7... Bxd3 {[%clk 0:02:35.9]} 8. cxd3 {[%clk 0:02:51.9]}
8... e6 {[%clk 0:02:30.5]} 9. O-O {[%clk 0:02:52]} 9... h6 {[%clk 0:01:49.3]}
10. Bh4 {[%clk 0:02:50.9]} 10... g5 {[%clk 0:01:44.9]} 11. Bg3 {[%clk
0:02:50.8]} 11... Nh5 {[%clk 0:01:44.3]} 12. Be5 {[%clk 0:02:45]} 12... Nxe5
{[%clk 0:01:33]} 13. Nxe5 {[%clk 0:02:45.9]} 13... Nf6 {[%clk 0:01:28.8]} 14. f4
{[%clk 0:02:46.1]} 14... Be7 {[%clk 0:01:08.2]} 15. Qe2 {[%clk 0:02:40.2]} 15...
Rh7 {[%clk 0:00:47]} 16. f5 {[%clk 0:02:29.9]} 16... O-O-O {[%clk 0:00:40.2]}
17. b4 {[%clk 0:02:29.8]} 17... Kb8 {[%clk 0:00:37.9]} 18. Qf2 {[%clk
0:02:22.9]} 18... Nd7 {[%clk 0:00:23.5]} 19. Nxd7+ {[%clk 0:02:12.9]} 19... Rxd7
{[%clk 0:00:24.4]} 20. b5 {[%clk 0:02:13.4]} 20... c5 {[%clk 0:00:20.5]} 21. Na4
{[%clk 0:02:11.7]} 21... Qc7 {[%clk 0:00:17.9]} 22. dxc5 {[%clk 0:02:07.6]}
22... Qe5 {[%clk 0:00:16.2]} 23. fxe6 {[%clk 0:02:02.7]} 23... fxe6 {[%clk
0:00:17.1]} 24. c6 {[%clk 0:01:57.6]} 24... Rc7 {[%clk 0:00:17.6]} 25. d4 {[%clk
0:01:53.8]} 25... Qe4 {[%clk 0:00:15.7]} 26. b6 {[%clk 0:01:44.1]} 26... axb6
{[%clk 0:00:15.4]} 27. Nxb6 {[%clk 0:01:28.7]} 27... Rxc6 {[%clk 0:00:15.3]} 28.
Rb2 {[%clk 0:01:26.5]} 28... Bd6 {[%clk 0:00:13.5]} 29. Rfb1 {[%clk 0:01:19]}
29... Rhc7 {[%clk 0:00:13.4]} 30. Rf1 {[%clk 0:00:58.9]} 30... Rc2 {[%clk
0:00:13.2]} 31. Rxc2 {[%clk 0:00:57.7]} 31... Rxc2 {[%clk 0:00:14.1]} 32. Qf3
{[%clk 0:00:54.6]} 32... Qxf3 {[%clk 0:00:12.3]} 33. Rxf3 {[%clk 0:00:53.1]}
33... Rxa2 {[%clk 0:00:12.3]} 34. Rf6 {[%clk 0:00:52.7]} 34... Ra1+ {[%clk
0:00:11.4]} 35. Kf2 {[%clk 0:00:52.7]} 35... Rb1 {[%clk 0:00:12]} 36. Nd7+
{[%clk 0:00:48.3]} 36... Kc7 {[%clk 0:00:11.2]} 37. Ne5 {[%clk 0:00:49.2]} 37...
Bxe5 {[%clk 0:00:11.2]} 38. dxe5 {[%clk 0:00:50.1]} 38... Kd7 {[%clk 0:00:11]}
39. Rf7+ {[%clk 0:00:50.5]} 39... Kc6 {[%clk 0:00:10.5]} 40. Re7 {[%clk
0:00:50.9]} 40... b5 {[%clk 0:00:11]} 41. Rxe6+ {[%clk 0:00:51.1]} 41... Kc5
{[%clk 0:00:11.9]} 42. Rxh6 {[%clk 0:00:48.7]} 42... b4 {[%clk 0:00:12.4]} 43.
e6 {[%clk 0:00:48.9]} 43... Kd6 {[%clk 0:00:12.5]} 44. Kg3 {[%clk 0:00:46.4]}
44... b3 {[%clk 0:00:12.3]} 45. Rh8 {[%clk 0:00:46.1]} 45... Kxe6 {[%clk
0:00:11.5]} 46. Rb8 {[%clk 0:00:46.7]} 46... Ke5 {[%clk 0:00:11.8]} 47. Rb4
{[%clk 0:00:46.8]} 47... b2 {[%clk 0:00:11.4]} 48. Kh3 {[%clk 0:00:46]} 48...
Kf5 {[%clk 0:00:11.4]} 49. Kg3 {[%clk 0:00:46]} 49... Ke5 {[%clk 0:00:11.8]} 50.
h3 {[%clk 0:00:43.7]} 50... Kf5 {[%clk 0:00:11.6]} 51. Kf2 {[%clk 0:00:42.3]}
51... Ke5 {[%clk 0:00:10.5]} 52. Kg3 {[%clk 0:00:37.6]} 52... Kf5 {[%clk
0:00:10.6]} 53. Kh2 {[%clk 0:00:38]} 53... Ke5 {[%clk 0:00:10.6]} 54. Rb3 {[%clk
0:00:36.2]} 54... Ke4 {[%clk 0:00:10.6]} 55. Kg3 {[%clk 0:00:36.8]} 55... Kf5
{[%clk 0:00:09.1]} 56. Kf2 {[%clk 0:00:35.8]} 56... Ke5 {[%clk 0:00:09]} 57. Kg3
{[%clk 0:00:36.1]} 57... Kf5 {[%clk 0:00:09.4]} 58. Kh2 {[%clk 0:00:36]} 58...
Ke4 {[%clk 0:00:09.7]} 59. g3 {[%clk 0:00:35.6]} 59... Kf3 {[%clk 0:00:09.2]}
60. h4 {[%clk 0:00:33.3]} 60... gxh4 {[%clk 0:00:08.8]} 61. gxh4 {[%clk
0:00:34.2]} 61... Kg4 {[%clk 0:00:09.2]} 62. Kg2 {[%clk 0:00:34.7]} 62... Kxh4
{[%clk 0:00:09.4]} 63. Kf2 {[%clk 0:00:34.8]} 63... Rh1 {[%clk 0:00:08.3]} 64.
Rb4+ {[%clk 0:00:23.8]} 64... Kg5 {[%clk 0:00:07.6]} 0-1

[Event "*** Titled Tuesday Blitz"]
[Site "Chess.com"]
[Date "2021.04.06"]
[Round "6"]
[White "evgchess5"]
[Black "maximych26"]
[Result "1-0"]
[WhiteElo "2898"]
[BlackElo "2272"]
[TimeControl "180+1"]
[EndTime "11:09:20 PDT"]
[Termination "evgchess5 won by resignation"]

1. e4 {[%clk 0:03:00.9]} 1... c6 {[%clk 0:02:42.5]} 2. d4 {[%clk 0:02:59.3]}
2... d5 {[%clk 0:02:39.4]} 3. exd5 {[%clk 0:02:59.5]} 3... cxd5 {[%clk
0:02:38.1]} 4. Bd3 {[%clk 0:03:00]} 4... Nf6 {[%clk 0:02:37.9]} 5. c3 {[%clk
0:02:59.7]} 5... Nc6 {[%clk 0:02:37.1]} 6. Bf4 {[%clk 0:02:58.9]} 6... Bg4
{[%clk 0:02:36.9]} 7. Qb3 {[%clk 0:02:56.4]} 7... Na5 {[%clk 0:02:35.9]} 8. Qa4+
{[%clk 0:02:54.2]} 8... Bd7 {[%clk 0:02:35.7]} 9. Qc2 {[%clk 0:02:54.7]} 9...
Rc8 {[%clk 0:02:34.6]} 10. Nf3 {[%clk 0:02:54]} 10... Nc6 {[%clk 0:02:32.8]} 11.
Qd1 {[%clk 0:02:33.6]} 11... Bg4 {[%clk 0:02:28.7]} 12. Nbd2 {[%clk 0:02:33.6]}
12... e6 {[%clk 0:02:28]} 13. Qa4 {[%clk 0:02:33.4]} 13... Bxf3 {[%clk
0:02:27.3]} 14. Nxf3 {[%clk 0:02:32.3]} 14... Bd6 {[%clk 0:02:26.6]} 15. Be3
{[%clk 0:02:27.1]} 15... O-O {[%clk 0:02:25.1]} 16. O-O {[%clk 0:02:26.8]} 16...
a6 {[%clk 0:02:21.4]} 17. h3 {[%clk 0:02:24.4]} 17... Qc7 {[%clk 0:02:16.3]} 18.
Rfe1 {[%clk 0:02:21.1]} 18... Qa5 {[%clk 0:02:09.1]} 19. Qd1 {[%clk 0:02:18.2]}
19... Qb6 {[%clk 0:02:07.6]} 20. Qe2 {[%clk 0:02:11.6]} 20... Qc7 {[%clk
0:02:06.8]} 21. Bg5 {[%clk 0:02:11.1]} 21... Be7 {[%clk 0:02:02.6]} 22. Qe3
{[%clk 0:02:08.6]} 22... Nh5 {[%clk 0:01:55.8]} 23. Qd2 {[%clk 0:01:58.6]} 23...
Bd6 {[%clk 0:01:33.4]} 24. Rad1 {[%clk 0:01:30.7]} 24... Bf4 {[%clk 0:01:31.4]}
25. Bxf4 {[%clk 0:01:29.1]} 25... Qxf4 {[%clk 0:01:30.1]} 26. Qe2 {[%clk
0:01:27]} 26... Qd6 {[%clk 0:01:24.7]} 27. g3 {[%clk 0:01:20.7]} 27... Nf6
{[%clk 0:01:19.2]} 28. Ne5 {[%clk 0:01:16.6]} 28... Qc7 {[%clk 0:01:10.7]} 29.
Qf3 {[%clk 0:01:15.1]} 29... Qd8 {[%clk 0:00:47.7]} 30. h4 {[%clk 0:01:12.7]}
30... Nxe5 {[%clk 0:00:41.6]} 31. Rxe5 {[%clk 0:01:10.9]} 31... Nd7 {[%clk
0:00:38.1]} 32. Re3 {[%clk 0:01:10.7]} 32... Qf6 {[%clk 0:00:37]} 33. Qe2 {[%clk
0:01:10.5]} 33... Rc7 {[%clk 0:00:35.1]} 34. Re1 {[%clk 0:01:09]} 34... Qd8
{[%clk 0:00:32.8]} 35. Kg2 {[%clk 0:01:08.1]} 35... Nf6 {[%clk 0:00:32.2]} 36.
Qf3 {[%clk 0:01:05.1]} 36... Qd6 {[%clk 0:00:31.7]} 37. a3 {[%clk 0:01:03.3]}
37... Qd8 {[%clk 0:00:31.4]} 38. Re5 {[%clk 0:01:02.5]} 38... Nd7 {[%clk
0:00:31.2]} 39. R5e2 {[%clk 0:01:01.7]} 39... Qf6 {[%clk 0:00:30.7]} 40. Qg4
{[%clk 0:01:01.6]} 40... Qd8 {[%clk 0:00:28.5]} 41. Qf4 {[%clk 0:01:01.3]} 41...
Rc6 {[%clk 0:00:26.8]} 42. g4 {[%clk 0:00:57.3]} 42... Qf6 {[%clk 0:00:26.8]}
43. Qg3 {[%clk 0:00:56.3]} 43... Qd8 {[%clk 0:00:26.5]} 44. f4 {[%clk
0:00:55.2]} 44... Qf6 {[%clk 0:00:24.8]} 45. g5 {[%clk 0:00:51.7]} 45... Qd8
{[%clk 0:00:24.7]} 46. f5 {[%clk 0:00:51.9]} 46... exf5 {[%clk 0:00:21.9]} 47.
Bxf5 {[%clk 0:00:50.9]} 47... Nb6 {[%clk 0:00:21.7]} 48. Re7 {[%clk 0:00:44.1]}
48... g6 {[%clk 0:00:20.9]} 49. Bd3 {[%clk 0:00:38.2]} 49... Qb8 {[%clk
0:00:20.3]} 50. Qxb8 {[%clk 0:00:34.6]} 50... Rxb8 {[%clk 0:00:20.4]} 51. Re8+
{[%clk 0:00:32.7]} 51... Rxe8 {[%clk 0:00:19.5]} 52. Rxe8+ {[%clk 0:00:33.3]}
52... Kg7 {[%clk 0:00:20.2]} 53. Re7 {[%clk 0:00:33.8]} 53... Nc4 {[%clk
0:00:19.2]} 54. Rxb7 {[%clk 0:00:30.8]} 54... Ne3+ {[%clk 0:00:18]} 55. Kf3
{[%clk 0:00:28.8]} 55... Nf5 {[%clk 0:00:16.4]} 56. h5 {[%clk 0:00:23]} 56... h6
{[%clk 0:00:14.8]} 57. gxh6+ {[%clk 0:00:22.4]} 57... Kxh6 {[%clk 0:00:12.5]}
58. Rxf7 {[%clk 0:00:22.1]} 58... Kxh5 {[%clk 0:00:12.2]} 59. Bxf5 {[%clk
0:00:21.2]} 59... gxf5 {[%clk 0:00:12.3]} 60. Rxf5+ {[%clk 0:00:21.3]} 60... Kg6
{[%clk 0:00:13]} 61. Rxd5 {[%clk 0:00:21.4]} 61... Rb6 {[%clk 0:00:13.7]} 62. b4
{[%clk 0:00:20.6]} 62... Kf6 {[%clk 0:00:14]} 63. Ke4 {[%clk 0:00:19.9]} 63...
Ke6 {[%clk 0:00:14.2]} 64. Rh5 {[%clk 0:00:19.2]} 64... Ke7 {[%clk 0:00:13.3]}
65. Rh7+ {[%clk 0:00:18.8]} 65... Kf6 {[%clk 0:00:12.6]} 66. Rh6+ {[%clk
0:00:17.8]} 66... Ke7 {[%clk 0:00:12.2]} 67. Rxb6 {[%clk 0:00:17.3]} 1-0

[Event "*** Titled Tuesday Blitz"]
[Site "Chess.com"]
[Date "2021.04.06"]
[Round "6"]
[White "Ceejay271"]
[Black "friesnielsen2302"]
[Result "0-1"]
[WhiteElo "2342"]
[BlackElo "2526"]
[TimeControl "180+1"]
[EndTime "11:09:20 PDT"]
[Termination "friesnielsen2302 won by resignation"]

1. d4 {[%clk 0:03:00.9]} 1... Nf6 {[%clk 0:02:57.4]} 2. Nf3 {[%clk 0:03:00.7]}
2... c5 {[%clk 0:02:57.4]} 3. c3 {[%clk 0:03:00.1]} 3... g6 {[%clk 0:02:56.5]}
4. Bg5 {[%clk 0:02:58.9]} 4... Qb6 {[%clk 0:02:54.3]} 5. Qb3 {[%clk 0:02:57.9]}
5... Bg7 {[%clk 0:02:52.7]} 6. e3 {[%clk 0:02:56.2]} 6... d6 {[%clk 0:02:52.8]}
7. Nbd2 {[%clk 0:02:55.8]} 7... Nbd7 {[%clk 0:02:53.3]} 8. Bc4 {[%clk
0:02:54.8]} 8... O-O {[%clk 0:02:51.9]} 9. O-O {[%clk 0:02:54.1]} 9... Re8
{[%clk 0:02:46.2]} 10. Rfe1 {[%clk 0:02:53.1]} 10... Qxb3 {[%clk 0:02:45.4]} 11.
Bxb3 {[%clk 0:02:52.5]} 11... b6 {[%clk 0:02:43.1]} 12. e4 {[%clk 0:02:51.1]}
12... e6 {[%clk 0:02:32.4]} 13. e5 {[%clk 0:02:40.8]} 13... dxe5 {[%clk
0:02:32.1]} 14. dxc5 {[%clk 0:02:29.8]} 14... Nxc5 {[%clk 0:02:30.3]} 15. Nxe5
{[%clk 0:02:28.4]} 15... Bb7 {[%clk 0:02:30.3]} 16. Bc2 {[%clk 0:02:25.2]} 16...
h6 {[%clk 0:02:27.5]} 17. Bh4 {[%clk 0:02:22.8]} 17... g5 {[%clk 0:02:26.7]} 18.
Bg3 {[%clk 0:02:22.7]} 18... Rad8 {[%clk 0:02:25.6]} 19. Nb3 {[%clk 0:02:22.2]}
19... Nce4 {[%clk 0:02:23.6]} 20. Rad1 {[%clk 0:02:16.2]} 20... Nxg3 {[%clk
0:02:22.8]} 21. hxg3 {[%clk 0:02:16]} 21... Nd5 {[%clk 0:02:21.1]} 22. Nd4
{[%clk 0:02:13.4]} 22... Bxe5 {[%clk 0:02:04.3]} 23. Rxe5 {[%clk 0:02:12.6]}
23... a6 {[%clk 0:02:02.8]} 24. Rde1 {[%clk 0:02:06.7]} 24... Rc8 {[%clk
0:01:59.3]} 25. Ba4 {[%clk 0:02:04.1]} 25... b5 {[%clk 0:01:58.6]} 26. Bb3
{[%clk 0:02:01.4]} 26... Kg7 {[%clk 0:01:55.6]} 27. a3 {[%clk 0:01:59.3]} 27...
Red8 {[%clk 0:01:48.3]} 28. Bd1 {[%clk 0:01:44.9]} 28... Rd6 {[%clk 0:01:46.2]}
29. Bg4 {[%clk 0:01:42.9]} 29... Nf6 {[%clk 0:01:44]} 30. Bf3 {[%clk 0:01:41.7]}
30... Bxf3 {[%clk 0:01:43.2]} 31. gxf3 {[%clk 0:01:41.5]} 31... Nd5 {[%clk
0:01:41.2]} 32. Kg2 {[%clk 0:01:40]} 32... Rb6 {[%clk 0:01:41.2]} 33. R1e4
{[%clk 0:01:27.3]} 33... Rd8 {[%clk 0:01:37.8]} 34. f4 {[%clk 0:01:25]} 34...
gxf4 {[%clk 0:01:36]} 35. gxf4 {[%clk 0:01:25.9]} 35... Nf6 {[%clk 0:01:33.5]}
36. Re3 {[%clk 0:01:25]} 36... a5 {[%clk 0:01:28.4]} 37. Rg3+ {[%clk 0:01:21]}
37... Kf8 {[%clk 0:01:27.6]} 38. Nxb5 {[%clk 0:01:16.5]} 38... Nd5 {[%clk
0:01:26.2]} 39. a4 {[%clk 0:01:13.4]} 39... Nxf4+ {[%clk 0:01:25.6]} 40. Kf3
{[%clk 0:01:13.6]} 40... Ng6 {[%clk 0:01:22.5]} 41. Rc5 {[%clk 0:01:11.7]} 41...
Ke7 {[%clk 0:01:20]} 42. Rh3 {[%clk 0:01:08]} 42... Rd2 {[%clk 0:01:11.9]} 43.
Rc7+ {[%clk 0:01:02.4]} 43... Kf6 {[%clk 0:01:11.7]} 44. Rxh6 {[%clk 0:01:00.3]}
44... Rb8 {[%clk 0:01:05.6]} 45. Nd6 {[%clk 0:00:53.7]} 45... Rf8 {[%clk
0:01:01]} 46. Ne4+ {[%clk 0:00:52.3]} 46... Kg7 {[%clk 0:01:00.9]} 47. Nxd2
{[%clk 0:00:50.2]} 47... Kxh6 {[%clk 0:01:00]} 48. Nc4 {[%clk 0:00:50.5]} 48...
Kg5 {[%clk 0:00:58.7]} 49. Rc5+ {[%clk 0:00:49.8]} 49... f5 {[%clk 0:00:58.9]}
50. Rxa5 {[%clk 0:00:49.4]} 50... Rh8 {[%clk 0:00:56.1]} 51. Ra6 {[%clk
0:00:47.6]} 51... e5 {[%clk 0:00:54.8]} 52. Rxg6+ {[%clk 0:00:44.9]} 52... Kxg6
{[%clk 0:00:54.5]} 53. Nxe5+ {[%clk 0:00:45.8]} 53... Kf6 {[%clk 0:00:54.8]} 54.
Nd3 {[%clk 0:00:44.5]} 54... Rh3+ {[%clk 0:00:53.2]} 55. Ke2 {[%clk 0:00:44]}
55... Rh1 {[%clk 0:00:51.2]} 56. a5 {[%clk 0:00:43.6]} 56... Ra1 {[%clk
0:00:50.3]} 57. b4 {[%clk 0:00:43.3]} 57... Ke6 {[%clk 0:00:50.7]} 58. Ke3
{[%clk 0:00:42.8]} 58... Kd5 {[%clk 0:00:50.4]} 59. Nc5 {[%clk 0:00:38.6]} 59...
Kc4 {[%clk 0:00:49.2]} 60. a6 {[%clk 0:00:21.3]} 60... Ra2 {[%clk 0:00:45.8]}
61. f3 {[%clk 0:00:18.8]} 61... Ra1 {[%clk 0:00:46]} 62. Kf4 {[%clk 0:00:18.9]}
62... Ra3 {[%clk 0:00:38.1]} 63. Kxf5 {[%clk 0:00:14.2]} 63... Rxc3 {[%clk
0:00:38.2]} 64. f4 {[%clk 0:00:13.9]} 64... Kxb4 {[%clk 0:00:36.2]} 65. Ne4
{[%clk 0:00:12.7]} 65... Ra3 {[%clk 0:00:32.9]} 66. Kg5 {[%clk 0:00:11]} 66...
Rxa6 {[%clk 0:00:32]} 67. f5 {[%clk 0:00:11.9]} 67... Kc4 {[%clk 0:00:32]} 68.
f6 {[%clk 0:00:11.8]} 68... Kd5 {[%clk 0:00:32]} 69. f7 {[%clk 0:00:11.5]} 69...
Ra8 {[%clk 0:00:32]} 70. Nf6+ {[%clk 0:00:10.5]} 70... Ke6 {[%clk 0:00:29.9]}
71. Kg6 {[%clk 0:00:11.4]} 71... Rf8 {[%clk 0:00:27.7]} 72. Kg7 {[%clk
0:00:12.3]} 72... Rxf7+ {[%clk 0:00:27.3]} 0-1

[Event "*** Titled Tuesday Blitz"]
[Site "Chess.com"]
[Date "2021.04.06"]
[Round "6"]
[White "rynos0411"]
[Black "FGHSMN"]
[Result "0-1"]
[WhiteElo "2448"]
[BlackElo "2584"]
[TimeControl "180+1"]
[EndTime "11:09:23 PDT"]
[Termination "FGHSMN won by resignation"]

1. d4 {[%clk 0:03:00.4]} 1... Nf6 {[%clk 0:02:59.6]} 2. c4 {[%clk 0:03:00.4]}
2... e6 {[%clk 0:02:59.3]} 3. Nf3 {[%clk 0:03:00.4]} 3... d5 {[%clk 0:02:57.5]}
4. Nc3 {[%clk 0:03:00.1]} 4... c6 {[%clk 0:02:52.6]} 5. e3 {[%clk 0:02:50.1]}
5... Nbd7 {[%clk 0:02:51.2]} 6. Bd3 {[%clk 0:02:41.9]} 6... dxc4 {[%clk
0:02:49.4]} 7. Bxc4 {[%clk 0:02:42.2]} 7... b5 {[%clk 0:02:47.3]} 8. Bd3 {[%clk
0:02:42.3]} 8... Bb7 {[%clk 0:02:43.7]} 9. O-O {[%clk 0:02:34]} 9... a6 {[%clk
0:02:36.6]} 10. e4 {[%clk 0:02:24.4]} 10... b4 {[%clk 0:02:32.9]} 11. Ne2 {[%clk
0:02:20.7]} 11... c5 {[%clk 0:02:27.4]} 12. Ng3 {[%clk 0:02:19.3]} 12... cxd4
{[%clk 0:02:25.3]} 13. Nxd4 {[%clk 0:01:25.6]} 13... Nc5 {[%clk 0:02:13.1]} 14.
Bc2 {[%clk 0:01:24.4]} 14... Bd6 {[%clk 0:01:50.3]} 15. Re1 {[%clk 0:00:42.5]}
15... Be5 {[%clk 0:01:24.6]} 16. Be3 {[%clk 0:00:40.3]} 16... O-O {[%clk
0:01:05.3]} 17. Nf3 {[%clk 0:00:26.7]} 17... Qxd1 {[%clk 0:00:45.1]} 18. Raxd1
{[%clk 0:00:24.6]} 18... Bxg3 {[%clk 0:00:33.5]} 19. Bxc5 {[%clk 0:00:20.5]}
19... Rfc8 {[%clk 0:00:33.3]} 20. Bxb4 {[%clk 0:00:03.4]} 20... Bxf2+ {[%clk
0:00:31.2]} 21. Kxf2 {[%clk 0:00:03]} 21... Rxc2+ {[%clk 0:00:31.8]} 22. Kg1
{[%clk 0:00:02.1]} 22... Bxe4 {[%clk 0:00:24]} 23. Bc3 {[%clk 0:00:02.4]} 23...
Bxf3 {[%clk 0:00:21.5]} 24. gxf3 {[%clk 0:00:03.3]} 24... Nd5 {[%clk 0:00:21.2]}
25. Rd2 {[%clk 0:00:03.4]} 25... Rxd2 {[%clk 0:00:18.6]} 26. Bxd2 {[%clk
0:00:04.3]} 26... Rc8 {[%clk 0:00:18.3]} 27. Re4 {[%clk 0:00:04.3]} 27... Rc2
{[%clk 0:00:16.3]} 28. Bc3 {[%clk 0:00:01.8]} 28... Nxc3 {[%clk 0:00:15.1]} 29.
bxc3 {[%clk 0:00:02.7]} 29... Rxc3 {[%clk 0:00:16]} 30. Rb4 {[%clk 0:00:02.4]}
30... h6 {[%clk 0:00:14.7]} 31. Ra4 {[%clk 0:00:02.6]} 31... Rxf3 {[%clk
0:00:13.3]} 32. Rxa6 {[%clk 0:00:02.3]} 32... Rc3 {[%clk 0:00:12.7]} 33. a4
{[%clk 0:00:02]} 33... Rc1+ {[%clk 0:00:13.3]} 34. Kf2 {[%clk 0:00:02.3]} 34...
Ra1 {[%clk 0:00:14.2]} 35. a5 {[%clk 0:00:02.1]} 35... Ra2+ {[%clk 0:00:15.1]}
36. Kg3 {[%clk 0:00:02.1]} 36... e5 {[%clk 0:00:14.5]} 37. Ra7 {[%clk
0:00:02.7]} 37... f5 {[%clk 0:00:11]} 38. h4 {[%clk 0:00:02.5]} 38... h5 {[%clk
0:00:08.4]} 39. a6 {[%clk 0:00:02.9]} 39... Kh7 {[%clk 0:00:07.8]} 40. Ra8
{[%clk 0:00:02.6]} 40... Kg6 {[%clk 0:00:08.2]} 41. Kf3 {[%clk 0:00:02.8]} 41...
Ra3+ {[%clk 0:00:06.8]} 42. Kg2 {[%clk 0:00:03.2]} 42... e4 {[%clk 0:00:06.3]}
43. a7 {[%clk 0:00:02.9]} 43... f4 {[%clk 0:00:03.4]} 44. Kf2 {[%clk 0:00:03.3]}
44... Ra2+ {[%clk 0:00:02.7]} 45. Kf1 {[%clk 0:00:03.8]} 45... e3 {[%clk
0:00:02.9]} 46. Rf8 {[%clk 0:00:03.1]} 46... Rxa7 {[%clk 0:00:02.4]} 47. Rxf4
{[%clk 0:00:03.6]} 47... Re7 {[%clk 0:00:02]} 48. Ke2 {[%clk 0:00:04]} 48... Re5
{[%clk 0:00:01.9]} 49. Rc4 {[%clk 0:00:04.4]} 49... Kf5 {[%clk 0:00:01.4]} 50.
Rb4 {[%clk 0:00:04.6]} 50... g6 {[%clk 0:00:01.9]} 51. Rc4 {[%clk 0:00:04.6]}
51... Re4 {[%clk 0:00:02.3]} 52. Rc5+ {[%clk 0:00:05.1]} 52... Kg4 {[%clk
0:00:02.3]} 53. Rg5+ {[%clk 0:00:05.7]} 53... Kxh4 {[%clk 0:00:02.9]} 54. Rxg6
{[%clk 0:00:06.6]} 54... Kh3 {[%clk 0:00:03.5]} 55. Kf3 {[%clk 0:00:06.7]} 55...
e2 {[%clk 0:00:03.5]} 56. Rg3+ {[%clk 0:00:04.6]} 56... Kh4 {[%clk 0:00:02.5]}
57. Rg2 {[%clk 0:00:01.9]} 57... e1=Q {[%clk 0:00:02.2]} 58. Rh2+ {[%clk
0:00:02.8]} 58... Kg5 {[%clk 0:00:02.8]} 59. Rg2+ {[%clk 0:00:03.7]} 59... Kh6
{[%clk 0:00:03.4]} 60. Rg3 {[%clk 0:00:04.6]} 60... Qxg3+ {[%clk 0:00:03]} 61.
Kxg3 {[%clk 0:00:05.5]} 61... Rg4+ {[%clk 0:00:03.7]} 62. Kh3 {[%clk 0:00:06.4]}
62... Kg5 {[%clk 0:00:04.6]} 63. Kh2 {[%clk 0:00:07.3]} 63... h4 {[%clk
0:00:05.4]} 0-1